bitfinex-derivatives/quotes_SOLF0:USTF0_20260226
["timestamp","ask_amount","ask_price","bid_price","bid_amount"]
[1772123689151,10.494,85.761,85.695,10.502]
[1772123689352,8.39850258,85.78,85.696,6.07163849]
[1772123689750,10.4926,85.772,85.701,6.08157896]
[1772123690052,8.39850258,85.8,85.721,6.08157896]
[1772123690449,5.24491843,85.827,85.721,6.08157896]
[1772123690655,8.39850258,85.86,85.761,6.08157896]
[1772123690955,8.39850258,85.88,85.784,6.08157896]
[1772123691349,232.76,85.905,85.8,8.39850258]
[1772123691549,8.39850258,85.9,85.802,6.08157896]
[1772123691952,10.4797,85.878,85.803,6.09601585]
[1772123692151,8.39850258,85.9,85.803,6.09601585]
[1772123692351,8.39850258,85.88,85.803,6.09601585]
[1772123693158,10.4807,85.869,85.803,6.09601585]
[1772123693454,5.24591666,85.897,85.791,6.09601585]
[1772123693754,8.39850258,85.94,85.841,6.14951058]
[1772123693959,8.39850258,85.95,85.85,8.39850258]
[1772123694154,10.4749,85.917,85.841,6.14951058]
[1772123694457,8.39850258,85.97,85.871,6.14951058]
[1772123695055,10.4714,85.946,85.871,6.14951058]
[1772123695554,11.83295741,86.014,85.87,8.39850258]
[1772123695555,10.4693,85.963,85.891,6.09140402]
[1772123696559,10.4693,85.963,85.893,6.09140402]
[1772123697262,8.39850258,85.97,85.87,14.4899066]
[1772123697457,8.39850258,85.97,85.871,6.09140402]
[1772123697658,10.4707,85.952,85.871,6.09140402]
[1772123698253,10.4707,85.952,85.873,6.0901195]
[1772123698458,8.39850258,85.97,85.873,6.0901195]
[1772123698658,8.39850258,85.99,85.873,6.0901195]
[1772123698856,162.8124,85.986,85.852,6.0901195]
[1772123699060,8.39850258,85.97,85.861,6.0901195]
[1772123699557,8.39850258,85.99,85.881,6.09860325]
[1772123699749,8.39850258,85.99,85.901,6.09860325]
[1772123700355,8.39850258,86.03,85.921,6.09860325]
[1772123700555,162.7111,86.04,85.921,6.09860325]
[1772123700556,8.39850258,86.02,85.921,6.09860325]
[1772123700851,8.39850258,86.0,85.9,14.49710582]
[1772123701051,8.39850258,85.98,85.9,6.09860324]
[1772123701256,10.4692,85.964,85.9,6.09860324]
[1772123701458,8.39850258,85.98,85.9,6.09860324]
[1772123701659,8.39850258,86.0,85.901,6.10498064]
[1772123701963,162.741,86.024,85.903,6.10498064]
[1772123702161,8.39850258,86.01,85.903,6.10498064]
[1772123702460,10.47,85.958,85.882,6.10498064]
[1772123702658,8.39850258,85.97,85.882,6.10498064]
[1772123703059,10.4714,85.946,85.882,6.10498064]
[1772123703860,10.4729,85.934,85.882,6.10498064]
[1772123704061,8.39850258,85.97,85.86,8.39850258]
[1772123704062,8.39850258,85.95,85.86,8.39850258]
[1772123704257,8.39850258,85.95,85.86,6.12155813]
[1772123704464,10.4757,85.911,85.84,8.39850258]
[1772123704762,8.39850258,85.93,85.841,6.12155813]
[1772123705158,10.4771,85.899,85.841,6.12155813]
[1772123705553,8.39850258,85.91,85.841,6.12155813]
[1772123705752,8.39850258,85.91,85.82,6.11828763]
[1772123705956,8.39850258,85.93,85.821,6.11828763]
[1772123706463,10.4754,85.913,85.844,6.11828763]
[1772123706759,8.39850258,85.93,85.844,6.11828763]
[1772123707063,10.4767,85.902,85.844,6.11828763]
[1772123707467,8.39850258,85.91,85.822,6.11828762]
[1772123707865,10.4777,85.894,85.822,6.11828762]
[1772123708266,8.39850258,85.91,85.822,6.11828762]
[1772123708462,10.4789,85.884,85.822,6.11828762]
[1772123708970,8.39850258,85.89,85.822,6.11828762]
[1772123709263,8.39850258,85.91,85.822,6.11828762]
[1772123709468,183.7504,85.984,85.861,6.12227116]
[1772123709665,8.39850258,85.97,85.863,6.11257807]
[1772123709869,8.39850258,85.97,85.881,6.11257807]
[1772123710466,8.39850258,85.95,85.86,8.39850258]
[1772123710769,8.39850258,85.95,85.86,6.11257806]
[1772123711974,10.4754,85.913,85.86,6.11257806]
[1772123712280,1.72423138,85.929,85.82,8.39850258]
[1772123712476,1.72423138,85.929,85.842,10.4839]
[1772123712774,162.8475,85.968,85.8,8.39850258]
[1772123712775,1.72423139,85.951,85.86,8.39850258]
[1772123712981,10.475,85.916,85.86,8.39850258]
[1772123713277,1.72423139,85.949,85.86,8.39850258]
[1772123713478,1.7242312,85.939,85.84,8.39850258]
[1772123714278,1.7242312,85.939,85.841,3.81283285]
[1772123715575,1.7292236,85.919,85.821,3.81283285]
[1772123715778,1.74114753,85.892,85.821,3.81283285]
[1772123715983,1.74114753,85.892,85.801,3.81283285]
[1772123716586,10.4814,85.864,85.803,3.81283285]
[1772123716780,1.74114753,85.892,85.803,3.81283285]
[1772123716979,1.74114735,85.879,85.803,3.81283285]
[1772123717583,10.4821,85.858,85.803,3.81283285]
[1772123717891,1.74114735,85.879,85.803,3.81283285]
[1772123718280,1.71032469,85.858,85.782,3.81283285]
[1772123718682,3.5495388,85.839,85.692,21.0047]
[1772123718985,34.7,85.856,85.72,8.39850258]
[1772123718986,3.5495388,85.819,85.72,8.39850258]
[1772123719187,3.5495388,85.819,85.743,10.4961]
[1772123719382,3.5495388,85.843,85.76,8.39850258]
[1772123719776,3.5495388,85.839,85.74,8.39850258]
[1772123719980,3.5495388,85.839,85.73,8.39850258]
[1772123720382,3.5495388,85.849,85.74,8.39850258]
[1772123720578,3.5495388,85.849,85.741,3.81283285]
[1772123721189,3.5495388,85.849,85.749,3.81283285]
[1772123721490,3.5495388,85.829,85.749,3.81283285]
[1772123721882,3.5495388,85.809,85.72,8.39850258]
[1772123722083,3.5495388,85.809,85.7,8.39850258]
[1772123722586,10.4929,85.77,85.701,10.5012]
[1772123722990,3.5495388,85.788,85.694,0.11669428]
[1772123722991,10.4916,85.78,85.721,10.4987]
[1772123723382,10.4916,85.78,85.72,8.39850258]
[1772123723383,3.5495388,85.789,85.694,0.11669428]
[1772123723790,3.5495388,85.789,85.7,8.39850258]
[1772123723991,3.5495388,85.789,85.701,3.81283285]
[1772123724290,10.4926,85.772,85.713,3.81283285]
[1772123725292,10.4926,85.772,85.7,8.39850258]
[1772123725293,10.4913,85.783,85.716,3.81283285]
[1772123725487,3.5495388,85.749,85.645,3.81283285]
[1772123725686,3.5495388,85.729,85.65,3.81283285]
[1772123725988,10.4988,85.721,85.65,12.21133543]
[1772123726180,8.39850258,85.75,85.651,3.81283285]
[1772123726586,10.4978,85.73,85.667,3.81283285]
[1772123726996,10.4998,85.713,85.667,3.81283285]
[1772123727295,3.5495388,85.749,85.667,3.81283285]
[1772123727990,10.4997,85.714,85.667,3.81283285]
[1772123728195,3.5495388,85.729,85.667,3.81283285]
[1772123728399,3.5495388,85.709,85.619,3.81283285]
[1772123728592,11.94804138,85.73,85.631,3.81283285]
[1772123728792,3.5495388,85.729,85.647,3.81283285]
[1772123729195,10.5005,85.708,85.647,3.81283285]
[1772123729498,3.5495388,85.729,85.647,3.81283285]
[1772123729699,10.5017,85.698,85.647,3.81283285]
[1772123730595,3.5495388,85.75,85.653,3.81283285]
[1772123730900,3.5495388,85.739,85.653,3.81283285]
[1772123731297,10.4988,85.721,85.664,10.5058]
[1772123731600,10.4988,85.721,85.62,8.39850258]
[1772123731601,3.5495388,85.719,85.641,3.81283285]
[1772123731789,3.5495388,85.719,85.642,3.81283285]
[1772123732298,3.5495388,85.739,85.642,3.81283285]
[1772123732499,10.4989,85.721,85.661,10.5061]
[1772123732895,10.4989,85.721,85.662,3.81283285]
[1772123733094,3.5495388,85.739,85.641,3.81283285]
[1772123733290,3.5495388,85.719,85.641,3.81283285]
[1772123733491,10.5019,85.696,85.642,10.5085]
[1772123733695,3.5495388,85.719,85.642,14.32133285]
[1772123733990,3.5495388,85.719,85.643,3.81283285]
[1772123734401,10.5003,85.709,85.643,3.81283285]
[1772123734895,10.5015,85.7,85.643,3.81283285]
[1772123735196,3.5495388,85.719,85.643,3.81283285]
[1772123736096,3.75667883,85.669,85.589,3.89953578]
[1772123736294,3.75667883,85.669,85.614,10.5119]
[1772123736493,3.75667883,85.699,85.609,3.89953578]
[1772123736688,3.75667883,85.679,85.609,3.89953578]
[1772123736997,3.75667883,85.659,85.59,3.89953578]
[1772123737392,3.75667883,85.659,85.57,3.89953578]
[1772123737697,3.75667883,85.659,85.581,3.89953578]
[1772123737893,3.75667883,85.659,85.594,3.89953578]
[1772123738997,163.3471,85.705,85.55,3.89953578]
[1772123738998,3.75667883,85.629,85.55,3.89953578]
[1772123739196,3.75667883,85.629,85.551,3.89953578]
[1772123739399,3.75667883,85.627,85.551,3.89953578]
[1772123739888,3.75667883,85.627,85.501,163.735]
[1772123739889,14.42312231,85.611,85.529,10.5223]
[1772123740090,3.91082231,85.61,85.529,10.5223]
[1772123740497,3.91082231,85.61,85.54,10.521]
[1772123740903,3.91082231,85.61,85.528,3.64980987]
[1772123741196,3.91082231,85.608,85.528,3.64980987]
[1772123741398,12.30932489,85.62,85.548,3.64980987]
[1772123741604,10.5115,85.618,85.548,3.64980987]
[1772123742000,3.91082231,85.618,85.548,3.64980987]
[1772123742201,10.5117,85.616,85.548,3.64980987]
[1772123742400,3.91082231,85.639,85.548,3.64980987]
[1772123742697,3.91082231,85.639,85.53,8.39850258]
[1772123742698,10.513,85.606,85.53,8.39850258]
[1772123742898,3.91082231,85.619,85.526,3.64980987]
[1772123743203,8.39850258,85.6,85.532,10.5219]
[1772123743398,3.91082231,85.619,85.546,3.64980987]
[1772123743594,3.91082231,85.619,85.548,3.64980987]
[1772123743796,3.91082231,85.639,85.55,3.64980987]
[1772123744903,10.5123,85.611,85.55,3.64980987]
[1772123745103,3.91082231,85.639,85.55,3.64980987]
[1772123745504,10.5122,85.612,85.55,3.64980987]
[1772123745897,3.91082231,85.639,85.55,3.64980987]
[1772123746702,8.39850258,85.66,85.561,3.64980987]
[1772123746998,3.91082231,85.659,85.581,3.64980987]
[1772123747202,10.5077,85.649,85.583,3.64980987]
[1772123747400,3.91082231,85.659,85.583,3.64980987]
[1772123747598,3.91082231,85.639,85.541,3.64980987]
[1772123747800,3.91082231,85.639,85.549,3.64980987]
[1772123748195,10.5114,85.619,85.562,10.5182]
[1772123748400,3.91082231,85.639,85.55,8.39850258]
[1772123748600,3.91082231,85.639,85.55,12.04831245]
[1772123748800,10.5133,85.604,85.53,8.39850258]
[1772123748994,8.39850258,85.62,85.527,3.64980987]
[1772123748995,3.91082231,85.603,85.527,3.64980987]
[1772123749198,3.91082231,85.603,85.53,8.39850258]
[1772123749399,3.91082231,85.627,85.548,10.5199]
[1772123749600,3.91082231,85.627,85.547,30.460019]
[1772123749906,3.91082231,85.627,85.548,10.52]
[1772123750107,3.91082231,85.609,85.547,26.81020913]
[1772123750599,3.91082231,85.629,85.548,3.64980987]
[1772123751306,10.5103,85.627,85.568,3.64980987]
[1772123751508,8.4241931,85.59,85.481,34.7]
[1772123751698,34.7,85.601,85.451,30.70389626]
[1772123751903,163.5436,85.602,85.451,30.70389626]
[1772123751904,34.7,85.573,85.451,30.70389626]
[1772123752096,163.5735,85.586,85.451,30.70389626]
[1772123752097,5.25647409,85.567,85.451,30.70389626]
[1772123752296,163.5688,85.589,85.461,21.23044971]
[1772123752497,8.4241931,85.56,85.461,21.23044971]
[1772123752697,10.5187,85.559,85.462,10.5306]
[1772123752902,8.4241931,85.54,85.463,21.23003446]
[1772123753110,163.5679,85.589,85.463,21.23003446]
[1772123753308,8.4241931,85.57,85.471,21.23003446]
[1772123753603,8.4241931,85.53,85.441,21.23003446]
[1772123753805,10.5227,85.527,85.443,21.20085786]
[1772123754103,8.4241931,85.55,85.443,21.20085786]
[1772123754610,8.4241931,85.53,85.443,21.20085786]
[1772123754804,10.5226,85.528,85.443,21.20085786]
[1772123755000,8.4241931,85.53,85.443,21.20085786]
[1772123755204,163.6282,85.558,85.443,21.20085786]
[1772123755205,34.7,85.557,85.443,21.20085786]
[1772123755404,8.4241931,85.53,85.443,21.20085786]
[1772123756209,5.25901093,85.557,85.443,21.20085786]
[1772123756409,5.25901093,85.557,85.406,2.03554601]
[1772123756410,8.4241931,85.55,85.451,21.17447303]
[1772123756598,163.6253,85.559,85.452,21.17447303]
[1772123756804,8.4241931,85.54,85.452,21.17447303]
[1772123757207,10.5227,85.527,85.452,21.17447303]
[1772123758006,163.6119,85.566,85.362,359.14942948]
[1772123758007,8.4241931,85.52,85.431,21.20737265]
[1772123759006,8.4241931,85.5,85.431,21.20737265]
[1772123759407,8.4241931,85.5,85.41,21.20692963]
[1772123759607,8.4241931,85.45,85.363,21.20692963]
[1772123760009,8.4241931,85.45,85.379,21.22466703]
[1772123760206,8.4241931,85.47,85.391,21.22466703]
[1772123760608,163.7409,85.499,85.391,21.22466703]
[1772123760806,283.88326985,85.504,85.357,27.00619736]
[1772123760807,5.26194128,85.467,85.362,21.22428085]
[1772123761314,8.4241931,85.45,85.362,21.22428085]
[1772123761503,8.4241931,85.47,85.371,21.22428085]
[1772123761708,448.21494316,85.473,85.391,21.26306008]
[1772123761908,448.21494316,85.473,85.393,21.26306008]
[1772123762116,448.21494316,85.473,85.411,21.26306008]
[1772123762516,10.5295,85.472,85.411,21.26306008]
[1772123762711,10.5295,85.472,85.391,21.2627804]
[1772123762908,448.21494316,85.473,85.391,21.2627804]
[1772123763107,10.531,85.46,85.393,21.2627804]
[1772123763507,448.21494316,85.473,85.393,21.2627804]
[1772123763711,448.21494316,85.473,85.405,31.78550135]
[1772123764113,448.21494316,85.473,85.405,21.24790135]
[1772123764309,8.4241931,85.46,85.378,21.24790135]
[1772123764715,448.21494316,85.473,85.381,21.24759389]
[1772123765415,10.5316,85.455,85.384,21.24759389]
[1772123765610,8.4241931,85.46,85.384,21.24759389]
[1772123766017,8.4241931,85.46,85.386,21.24836012]
[1772123766018,10.5314,85.456,85.386,21.24836012]
[1772123766616,8.4241931,85.46,85.386,21.24836012]
[1772123766814,448.21494316,85.473,85.391,21.24806143]
[1772123767114,448.21494316,85.473,85.39,8.4241931]
[1772123767115,10.531,85.459,85.393,21.24806143]
[1772123767313,448.21494316,85.473,85.393,21.24806143]
[1772123768213,10.5321,85.45,85.393,21.24806143]
[1772123768816,448.21494316,85.473,85.393,21.24806143]
[1772123769016,8.4241931,85.46,85.393,21.24806143]
[1772123769324,10.5312,85.458,85.395,10.5388]
[1772123769517,10.5312,85.458,85.393,21.24806143]
[1772123769722,448.21494316,85.473,85.393,21.24806143]
[1772123769918,448.21494316,85.473,85.397,21.19890908]
[1772123770526,448.21494316,85.473,85.401,21.19890908]
[1772123770826,8.4241931,85.5,85.401,21.19890908]
[1772123771023,10.5269,85.493,85.422,21.19852292]
[1772123771220,8.4241931,85.5,85.422,21.19852292]
[1772123771932,10.5281,85.483,85.422,31.73402292]
[1772123772226,8.4241931,85.5,85.423,21.15629546]
[1772123772728,8.4241931,85.52,85.434,21.15583143]
[1772123773425,8.4241931,85.54,85.446,21.15583143]
[1772123774122,10.5224,85.529,85.465,10.5302]
[1772123774314,8.4241931,85.54,85.446,21.15583143]
[1772123774513,10.522,85.532,85.464,21.16618408]
[1772123774714,163.5163,85.616,85.471,21.16618408]
[1772123774924,8.4241931,85.57,85.471,21.16618408]
[1772123775225,10.5183,85.562,85.491,21.16618408]
[1772123775420,8.4241931,85.62,85.491,21.16618408]
[1772123775421,8.4241931,85.59,85.491,21.16618408]
[1772123775927,10.5153,85.587,85.514,21.15041417]
[1772123776123,8.4241931,85.59,85.514,21.15041417]
[1772123776333,10.5192,85.555,85.491,21.15041417]
[1772123776729,21.0228,85.619,85.48,8.4241931]
[1772123776730,10.5168,85.575,85.513,21.14996377]
[1772123777130,21.0152,85.65,85.521,21.14996377]
[1772123777330,163.4161,85.669,85.532,21.14996377]
[1772123777331,8.4241931,85.63,85.532,21.14996377]
[1772123777531,8.4241931,85.63,85.54,8.4241931]
[1772123777728,8.4241931,85.63,85.541,21.07982749]
[1772123777929,10.5104,85.627,85.555,21.07982749]
[1772123778127,8.4241931,85.63,85.555,21.07982749]
[1772123778626,10.513,85.606,85.537,10.5213]
[1772123778827,5.25928947,85.657,85.535,21.0792555]
[1772123779028,8.4241931,85.62,85.535,21.0792555]
[1772123779436,8.4241931,85.62,85.537,21.0792555]
[1772123779627,5.25928947,85.647,85.537,21.0792555]
[1772123779828,8.4241931,85.63,85.537,21.0792555]
[1772123780628,10.513,85.606,85.538,20.97656267]
[1772123781530,10.5143,85.596,85.538,20.97656267]
[1772123781732,8.4241931,85.61,85.538,20.97656267]
[1772123781933,8.4241931,85.59,85.511,20.96613048]
[1772123782132,10.5169,85.574,85.511,20.96613048]
[1772123782330,8.4241931,85.59,85.511,20.96613048]
[1772123782634,10.518,85.565,85.511,20.96613048]
[1772123783034,8.4241931,85.59,85.511,20.96613048]
[1772123783632,8.4241931,85.57,85.511,20.96613048]
[1772123784430,163.5304,85.609,85.511,20.96613048]
[1772123784431,8.4241931,85.59,85.511,20.96613048]
[1772123784630,163.5681,85.589,85.511,20.96613048]
[1772123784831,8.4241931,85.57,85.511,20.96613048]
[1772123785438,8.4241931,85.55,85.47,8.4241931]
[1772123785638,8.4241931,85.55,85.45,8.4241931]
[1772123785944,8.4241931,85.54,85.45,8.4241931]
[1772123786139,8.4241931,85.56,85.45,8.4241931]
[1772123786445,10.5242,85.514,85.45,8.4241931]
[1772123786649,8.4241931,85.58,85.49,8.4241931]
[1772123786838,10.5202,85.547,85.49,8.4241931]
[1772123787441,10.5202,85.547,85.491,11.95476227]
[1772123787941,8.4241931,85.58,85.491,11.95476227]
[1772123788345,163.5918,85.577,85.491,11.95476227]
[1772123788548,8.4241931,85.58,85.491,11.95476227]
[1772123788549,8.4241931,85.56,85.491,11.95476227]
[1772123789145,3.71308756,85.571,85.491,11.95476227]
[1772123789440,3.71308756,85.569,85.491,11.95476227]
[1772123789646,12.13728066,85.59,85.491,11.95476227]
[1772123789941,163.54,85.604,85.491,11.95476227]
[1772123789942,12.13728066,85.57,85.491,11.95476227]
[1772123790143,3.71308756,85.569,85.491,11.95476227]
[1772123790343,10.523,85.525,85.491,11.95476227]
[1772123790744,3.71308756,85.569,85.491,11.95476227]
[1772123790952,163.5339,85.607,85.491,11.95476227]
[1772123790953,10.5202,85.547,85.491,11.95476227]
[1772123791749,3.71308756,85.579,85.491,11.95476227]
[1772123792146,10.521,85.541,85.491,11.95476227]
[1772123792344,8.4241931,85.56,85.491,11.95476227]
[1772123792644,3.71308756,85.556,85.471,4.07354962]
[1772123792843,8.4241931,85.54,85.471,4.07354962]
[1772123793043,3.71308756,85.539,85.471,4.07354962]
[1772123793947,10.5254,85.505,85.471,4.07354962]
[1772123794750,10.5265,85.496,85.449,4.07354962]
[1772123795248,10.5253,85.505,85.449,4.07354962]
[1772123795650,3.71308756,85.539,85.451,4.01898732]
[1772123796550,10.5234,85.521,85.451,4.01898732]
[1772123796748,3.71308756,85.539,85.451,4.01898732]
[1772123797150,10.5254,85.505,85.451,4.01898732]
[1772123797349,3.71308756,85.539,85.451,4.01898732]
[1772123797758,10.5255,85.504,85.451,4.01898732]
[1772123798163,3.98308782,85.556,85.451,4.01898732]
[1772123798365,3.98308782,85.556,85.471,4.01898732]
[1772123799262,10.5241,85.515,85.471,4.01898732]
[1772123799867,10.5252,85.507,85.471,4.01898732]
[1772123800365,4.04782997,85.536,85.471,4.01898732]
[1772123800866,10.5227,85.527,85.471,4.01898732]
[1772123801060,8.4241931,85.56,85.473,0.77121443]
[1772123801061,4.04782997,85.555,85.473,0.77121443]
[1772123801465,10.5206,85.544,85.483,11.28940684]
[1772123801662,10.5206,85.544,85.484,0.76140684]
[1772123802760,10.5206,85.544,85.487,0.73493007]
[1772123803261,10.5215,85.537,85.489,0.72534648]
[1772123804256,10.5215,85.537,85.451,34.7]
[1772123804257,4.04782997,85.576,85.491,0.65812851]
[1772123805260,10.5202,85.547,85.494,0.64995414]
[1772123806663,10.5202,85.547,85.49,8.4241931]
[1772123806664,4.04782997,85.576,85.511,0.66652457]
[1772123806864,4.04782997,85.595,85.511,0.66652457]
[1772123807061,4.04782997,85.595,85.529,0.66652457]
[1772123807262,4.04782997,85.619,85.529,0.66652457]
[1772123807464,4.04782997,85.619,85.531,0.65737377]
[1772123807770,10.5146,85.593,85.531,0.65737377]
[1772123807971,4.04782997,85.619,85.531,0.65737377]
[1772123808466,4.04782997,85.613,85.56,8.4241931]
[1772123808666,4.04782997,85.613,85.541,0.7559031]
[1772123809365,10.5125,85.61,85.542,0.7469613]
[1772123809569,4.04782997,85.613,85.542,0.7469613]
[1772123809970,4.04782997,85.611,85.551,10.5197]
[1772123810569,4.04782997,85.611,85.556,10.519]
[1772123810762,4.04782997,85.655,85.581,0.80194219]
[1772123811967,8.42251754,85.61,85.537,0.785782]
[1772123812370,4.04782997,85.609,85.537,0.785782]
[1772123813375,8.3447518,85.649,85.538,0.769509]
[1772123813570,4.04782997,85.648,85.57,8.42251754]
[1772123814073,4.04782997,85.635,85.563,10.5181]
[1772123814272,4.04782997,85.635,85.559,0.56422069]
[1772123815266,4.04782997,85.634,85.564,10.518]
[1772123815869,8.3552856,85.665,85.559,0.56422069]
[1772123815870,4.04782997,85.629,85.559,0.56422069]
[1772123816270,4.04782997,85.597,85.532,10.522]
[1772123816470,4.04782997,85.597,85.519,0.75727926]
[1772123816867,10.5158,85.583,85.519,11.28077926]
[1772123817068,4.04782997,85.582,85.5,0.75813093]
[1772123817664,8.42251754,85.61,85.5,0.75813093]
[1772123817665,4.04782997,85.564,85.5,0.75813093]
[1772123818179,10.5184,85.562,85.501,10.5257]
[1772123818377,4.04782997,85.608,85.53,8.42251754]
[1772123818676,14.56052997,85.608,85.55,10.5198]
[1772123818875,4.04782997,85.608,85.521,0.75571006]
[1772123819574,4.04782997,85.598,85.536,10.5214]
[1772123820077,14.56192997,85.597,85.536,10.5214]
[1772123820676,4.04782997,85.597,85.536,10.5214]
[1772123821181,4.04782997,85.589,85.524,10.523]
[1772123821677,4.04782997,85.585,85.524,10.523]
[1772123821880,4.04782997,85.585,85.533,10.5219]
[1772123822974,4.04782997,85.585,85.541,10.5208]
[1772123823279,4.04782997,85.585,85.52,0.99031239]
[1772123823674,4.04782997,85.579,85.499,0.97556308]
[1772123823877,4.04782997,85.607,85.521,0.97715653]
[1772123824177,8.37769068,85.608,85.521,0.97715653]
[1772123824178,4.04782997,85.605,85.521,0.97715653]
[1772123825075,4.04782997,85.605,85.55,10.5197]
[1772123825980,4.04782997,85.605,85.56,10.5186]
[1772123826178,4.04782997,85.605,85.531,1.07271677]
[1772123827172,10.5133,85.603,85.551,10.5197]
[1772123827479,4.04782997,85.589,85.492,4.01865497]
[1772123827680,10.5169,85.574,85.492,4.01865497]
[1772123827880,10.5169,85.574,85.522,10.5232]
[1772123828477,4.04782997,85.613,85.531,4.01865497]
[1772123829376,4.04782997,85.613,85.553,10.5193]
[1772123830180,3.88632957,85.637,85.564,4.01760902]
[1772123830789,3.88632957,85.656,85.571,4.01760902]
[1772123831576,3.88632957,85.656,85.596,10.5141]
[1772123831783,3.88632957,85.656,85.596,14.53170902]
[1772123833888,3.88632957,85.656,85.605,10.513]
[1772123834388,3.88632957,85.656,85.596,4.01760902]
[1772123834589,3.88632957,85.702,85.596,4.01760902]
[1772123834781,10.5055,85.667,85.6,10.5136]
[1772123834982,3.88632957,85.666,85.6,10.5136]
[1772123835383,3.88632957,85.66,85.591,4.01760902]
[1772123836082,10.5075,85.651,85.591,4.01760902]
[1772123836681,3.88632957,85.68,85.604,4.01760902]
[1772123836880,3.88632957,85.68,85.56,8.42251754]
[1772123836881,3.88632957,85.679,85.583,4.01760902]
[1772123837884,14.39212957,85.664,85.602,10.5134]
[1772123838287,3.88632957,85.683,85.583,4.01760902]
[1772123838487,3.88632957,85.68,85.603,4.01760902]
[1772123839087,3.88632957,85.717,85.62,8.42251754]
[1772123839386,3.88632957,85.709,85.621,4.01760902]
[1772123839583,3.88632957,85.696,85.621,4.01760902]
[1772123839788,3.88632957,85.689,85.621,4.01760902]
[1772123840294,10.5033,85.685,85.628,10.5101]
[1772123840490,3.88632957,85.685,85.621,4.01760902]
[1772123840690,14.39222957,85.664,85.599,4.01760902]
[1772123841289,10.5073,85.652,85.599,4.01760902]
[1772123842491,3.88632957,85.645,85.581,10.5159]
[1772123842694,3.88632957,85.645,85.578,4.01760902]
[1772123843792,8.31424123,85.687,85.578,4.01760902]
[1772123843995,3.88632957,85.686,85.601,4.01760902]
[1772123844689,3.88632957,85.682,85.617,10.5115]
[1772123844892,3.88632957,85.682,85.601,4.01760902]
[1772123845386,3.88632957,85.671,85.607,10.5128]
[1772123845987,3.88632957,85.695,85.619,4.01760902]
[1772123846895,10.5038,85.681,85.622,10.5109]
[1772123848092,3.88632957,85.675,85.613,10.512]
[1772123848699,3.88632957,85.719,85.621,4.01760902]
[1772123849201,3.88632957,85.729,85.673,10.5046]
[1772123849699,3.88632957,85.729,85.641,4.01760902]
[1772123849997,8.42251754,85.73,85.641,4.01760902]
[1772123849998,3.88632957,85.709,85.643,10.5083]
[1772123850194,3.88632957,85.709,85.641,4.01760902]
[1772123850395,10.502,85.695,85.641,4.01760902]
[1772123850590,10.502,85.695,85.632,10.5097]
[1772123850790,10.5031,85.687,85.622,14.52850902]
[1772123850995,3.88632957,85.689,85.622,14.52850902]
[1772123851189,3.88632957,85.689,85.622,4.01760902]
[1772123851698,10.5042,85.678,85.622,4.01760902]
[1772123852093,10.5052,85.67,85.622,4.01760902]
[1772123852600,3.88632957,85.689,85.6,4.01760902]
[1772123852997,3.88632957,85.689,85.61,10.5123]
[1772123853497,3.88632957,85.689,85.6,4.01760902]
[1772123854298,3.88632957,85.71,85.621,0.62030731]
[1772123854798,3.88632957,85.71,85.641,0.62159252]
[1772123855398,3.88632957,85.71,85.657,10.5066]
[1772123856400,8.42251754,85.68,85.598,3.70147065]
[1772123856601,10.5051,85.67,85.598,3.70147065]
[1772123856898,3.78557059,85.679,85.599,10.5137]
[1772123857399,10.5068,85.656,85.598,3.70147065]
[1772123857906,3.78557059,85.659,85.574,3.70147065]
[1772123859007,10.508,85.647,85.58,3.70147065]
[1772123859204,3.78557059,85.699,85.58,3.70147065]
[1772123859504,3.78557059,85.699,85.59,8.42251754]
[1772123859808,3.78557059,85.699,85.591,0.43863127]
[1772123860204,3.68737719,85.678,85.6,10.5136]
[1772123860803,10.5046,85.674,85.609,10.5125]
[1772123860999,3.68737719,85.673,85.609,10.5125]
[1772123861803,3.65405591,85.733,85.618,0.52633639]
[1772123862010,3.65405591,85.733,85.631,0.52633639]
[1772123862209,3.65405591,85.711,85.631,0.52633639]
[1772123862410,3.65405591,85.711,85.651,10.5073]
[1772123862910,10.5004,85.709,85.651,10.5073]
[1772123863304,10.5004,85.709,85.64,10.5086]
[1772123863511,10.5004,85.709,85.631,0.52633639]
[1772123864910,10.5004,85.709,85.649,10.5075]
[1772123865108,3.65405591,85.711,85.631,0.52633639]
[1772123865708,3.64884823,85.71,85.631,0.52633639]
[1772123867310,3.64884823,85.71,85.656,10.5067]
[1772123868311,3.64575563,85.708,85.656,10.5067]
[1772123868609,3.64575563,85.708,85.631,0.52633639]
[1772123868913,20.991,85.749,85.608,0.54293696]
[1772123868914,3.64575563,85.699,85.608,0.54293696]
[1772123869111,3.64575563,85.699,85.621,0.54293696]
[1772123869313,10.5039,85.68,85.621,0.54293696]
[1772123869812,3.64575563,85.699,85.639,10.5088]